Cogmind - Beta 10.2 @@@ ROGUE MODE // 2021.05.31 @ 16:20:14 Player: Plexion Result: Destroyed by G-67 Veteran with Electrolaser Performance ------------- Evolutions (7) 3500 Regions Visited (29) 5800 Robots Destroyed (234) 1170 Value Destroyed (9980) 9980 Prototype IDs (242) 4840 Alien Tech Used (3) 600 Bonus (10717) 10717 TOTAL SCORE: 36607 Bonus ------- High Alert Combat Kills 1092 Follower Combat Kills 3033 Network Hubs Disabled 400 Aligned with FarCom 300 Met Data Miner 300 Used Data Conduit 3000 Met Zhirov 300 Met R17 at Cetus 500 Used Core Reset Matrix 3000 Pursued by Intercept 500 Friendly Fire -1708 Cogmind --------- Core Integrity 0/1300 Matter 31/300 Energy 100/100 System Corruption 0% Temperature Cool (9) Movement Flying (60) Location -3/Quarantine Parts ------- > --- POWER (2) -------- (None) > --- PROPULSION (6) --- Biometal Medium Treads Q-thruster > --- UTILITY (9) ------ (None) > --- WEAPON (4) ------- (None) > --- INVENTORY (4) ---- Transdimensional Reconstructor Field Lobotomy Kit Peak State ------------ > --- POWER ------------ Reinforced Fission Core Quantum Reactor > --- PROPULSION ------- Armored Medium Treads Advanced Medium Treads Improved Heavy Treads Centrium Heavy Treads > --- UTILITY ---------- Advanced Cooling System High-capacity Storage Unit High-capacity Storage Unit High-capacity Storage Unit Advanced Signal Interpreter Centrium Medium Armor Plating Centrium Medium Armor Plating Advanced Hacking Suite Advanced System Shield > --- WEAPON ----------- HERF Cannon Railgun Railgun Improved KE Penetrator > --- INVENTORY -------- Quantum Reactor Advanced Energy Well Quantum Capacitor Centrium Medium Armor Plating Centrium Medium Armor Plating Damper Plating Damper Plating Damper Plating Advanced Powered Armor System Restoration Module Transdimensional Reconstructor KE Penetrator KE Penetrator Railgun Hardcell Cannon Remote Datajack Field Lobotomy Kit Power Sword Master Tearclaws [Rating: 150] Favorites ----------- Power Light Angular Momentum Engine Engine Light Angular Momentum Engine Power Core Light Nuclear Core Reactor Antimatter Reactor Propulsion Light Treads Treads Light Treads Leg Flexi-carbon Leg Hover Unit Hover Unit Flight Unit Q-thruster Utility High-capacity Storage Unit Device Long-range Sensor Array Storage High-capacity Storage Unit Processor Advanced Signal Interpreter Hackware Advanced System Shield Protection Layered Medium Armor Plating Weapon Flak Gun Energy Gun EM Pulse Gun Energy Cannon HERF Cannon Ballistic Gun Flak Gun Ballistic Cannon Advanced Assault Cannon Launcher Proton Missile Launcher Special Weapon Plasma Cutter Slashing Weapon Power Sword Build | -11 -10 -10 -10 -9 -8 -7 -7 -7 -7 -6 -6 -6 -6 -6 -6 -6 -5 -5 -5 -5 -5 -4 -4 -4 -4 -4 -4 -3 -3 ------- Run | Scr Mat Min Exi Min Mat Fac Low Low Zio Pro Fac Was Fac Low Low Dat Pro Fac Upp Upp Zhi Pro Fac Ext Cet Arc Hub Res Qua Slots Evolved 14 | . . . . . 4 2 . . . . 2 . . . . . . 2 . . . . 2 . . . . 2 . Power 1 | . . . . . . . . . . . . . . . . . . 1 . . . . . . . . . . . Propulsion 4 | . . . . . 1 1 . . . . . . . . . . . . . . . . 1 . . . . 1 . Utility 7 | . . . . . 2 1 . . . . 2 . . . . . . . . . . . 1 . . . . 1 . Weapon 2 | . . . . . 1 . . . . . . . . . . . . 1 . . . . . . . . . . . Parts Attached 255 | 7 6 . 3 1 28 22 1 1 4 . 8 8 17 6 3 19 10 12 13 2 3 12 4 20 8 . 11 21 5 Power 20 | 1 1 . . . 3 1 . . . . . 1 . . . 2 . 3 1 . 1 1 . 2 2 . . 1 . Engine 5 | 1 1 . . . . 1 . . . . . . . . . . . 1 1 . . . . . . . . . . Core 6 | . . . . . 3 . . . . . . . . . . . . 2 . . . . . 1 . . . . . Reactor 9 | . . . . . . . . . . . . 1 . . . 2 . . . . 1 1 . 1 2 . . 1 . Propulsion 52 | 2 1 . . 1 7 6 1 1 . . 3 2 . . . 5 2 . 2 1 . 2 2 3 1 . . 6 4 Treads 40 | 2 1 . . . 7 6 1 1 . . 3 2 . . . 3 . . 1 . . 1 1 2 1 . . 6 2 Leg 9 | . . . . . . . . . . . . . . . . 2 2 . 1 1 . 1 1 1 . . . . . Wheel . | . . . . . . . . . . . . . . . . . . . . . . . . . . . . . . Hover 2 | . . . . 1 . . . . . . . . . . . . . . . . . . . . . . . . 1 Flight 1 | . . . . . . . . . . . . . . . . . . . . . . . . . . . . . 1 Utility 90 | 1 1 . 2 . 8 9 . . 4 . 2 4 10 2 1 4 6 4 5 . 1 2 1 8 3 . 5 7 . Device 39 | . . . . . . 5 . . 1 . 1 2 9 1 . 2 4 1 3 . . 2 1 2 . . 2 3 . Storage 6 | 1 . . 2 . 1 . . . . . . 1 . . . . . 1 . . . . . . . . . . . Processor 7 | . . . . . . 1 . . 3 . . 1 . . . . 1 . . . . . . . . . 1 . . Hackware 2 | . . . . . . . . . . . . . . . . . . . . . . . . . . . . 2 . Protection 36 | . 1 . . . 7 3 . . . . 1 . 1 1 1 2 1 2 2 . 1 . . 6 3 . 2 2 . Artifact . | . . . . . . . . . . . . . . . . . . . . . . . . . . . . . . Weapon 93 | 3 3 . 1 . 10 6 . . . . 3 1 7 4 2 8 2 5 5 1 1 7 1 7 2 . 6 7 1 Energy Gun 3 | 1 . . . . 2 . . . . . . . . . . . . . . . . . . . . . . . . Energy Cannon 5 | . . . . . . . . . . . . . . 1 . . 1 . . . . . . . . . 1 2 . Ballistic Gun 49 | 2 2 . . . 8 3 . . . . . 1 2 . 1 5 . 3 2 1 . 4 . 5 2 . 4 3 1 Ballistic Cannon 10 | . 1 . 1 . . 2 . . . . . . . . . 1 . 2 1 . . . . 2 . . . . . Launcher 6 | . . . . . . . . . . . . . 2 2 1 . . . 1 . . . . . . . . . . Special Weapon 4 | . . . . . . . . . . . 1 . . . . 1 . . . . 1 1 . . . . . . . Impact Weapon . | . . . . . . . . . . . . . . . . . . . . . . . . . . . . . . Slashing Weapon 16 | . . . . . . 1 . . . . 2 . 3 1 . 1 1 . 1 . . 2 1 . . . 1 2 . Piercing Weapon . | . . . . . . . . . . . . . . . . . . . . . . . . . . . . . . Special Melee Weapon . | . . . . . . . . . . . . . . . . . . . . . . . . . . . . . . Unidentified Prototypes 8 | . . . . . 1 . . . 3 . . . 1 . . . . . . . 1 . . . . . . 1 1 Parts Lost 72 | . 2 1 . . 9 3 . 1 . . . . . . 1 10 7 1 3 . . 5 . 10 . . 2 15 2 Power 10 | . 1 . . . 1 1 . . . . . . . . . 2 1 1 1 . . 1 . . . . . 1 . Propulsion 23 | . 1 1 . . 2 1 . 1 . . . . . . . 3 1 . 1 . . 3 . 2 . . 1 4 2 Utility 17 | . . . . . 3 1 . . . . . . . . 1 1 1 . . . . . . 5 . . . 5 . Weapon 22 | . . . . . 3 . . . . . . . . . . 4 4 . 1 . . 1 . 3 . . 1 5 . Highest Loss Streak 12 | . 1 1 . . 2 2 . 1 . . . . . . 1 10 6 1 2 . . 4 . 4 . . 1 12 1 Average Slot Usage (%) 89 | . 99 85 84 90 97 99 100 99 99 100 92 86 86 86 85 79 74 79 95 93 97 95 88 83 85 89 81 75 16 Engine 3 | . 13 14 14 14 2 1 7 7 7 7 6 . . . . . . . 3 5 5 2 . . . . . . . Core 1 | . . . . . 6 5 . . . . . . . . . . . 3 3 . . . . 2 5 5 5 3 . Reactor 2 | . . . . . . . . . . . . 5 6 6 6 4 . . . . 2 7 10 7 5 5 5 3 . Treads 16 | . 28 14 14 14 25 29 30 29 30 30 26 14 13 13 13 12 2 . 3 5 5 4 9 10 15 15 15 16 8 Leg 5 | . . . . . . . . . . . . . . . . 3 23 23 19 16 17 13 6 4 . . . . . Device 6 | . . . . . . 5 15 15 14 15 12 11 12 12 13 9 5 4 4 5 5 5 9 4 5 5 4 2 . Storage 16 | . 14 14 22 28 18 15 15 15 15 15 13 19 20 20 20 20 20 17 17 17 17 17 15 15 15 15 15 12 . Processor 7 | . . . . . . 4 7 7 7 7 6 13 13 13 6 6 10 11 11 11 11 11 10 10 10 10 7 3 . Protection 5 | . 13 14 4 . 16 11 . . . . 5 . . . 5 4 1 2 5 5 5 5 5 6 6 10 6 7 . Ballistic Gun 15 | . 21 28 27 14 24 16 15 15 15 15 13 20 13 13 19 13 . 4 15 21 20 20 18 12 14 15 15 11 1 Ballistic Cannon 2 | . 6 . . 14 1 5 7 7 7 7 2 . . . . . . 3 3 1 . . . 5 5 5 1 . . Slashing Weapon 1 | . . . . . . . . . . . 3 . 5 . . . 5 5 3 . . 1 1 1 . . 1 . . Naked Turns 68 | . . . . . . . . . . . . . . . . . . . . . . . . . . . . 60 8 Heaviest Build 213 | 10 13 13 49 49 90 92 91 91 91 91 106 128 133 132 139 140 144 132 135 134 141 148 149 181 179 179 213 182 6 Greatest Support 212 | 40 40 20 20 20 63 85 93 93 93 93 110 140 140 140 140 140 92 92 92 64 56 70 145 172 177 177 177 212 28 Greatest Overweight (x) 4 | . . . 2 2 4 2 1 . . . 1 . . . . 4 4 2 2 3 2 3 2 1 1 1 1 . . Average Overweight (x) . | . . . 1 2 1 . . . . . . . . . . . 1 1 1 2 2 1 1 . . 1 1 . . Largest Inventory Capacity 28 | 6 6 6 16 16 24 20 20 20 20 20 20 28 28 28 28 28 28 28 28 28 28 28 28 28 28 28 28 28 4 Average Capacity 23 | 4 6 6 12 16 19 20 20 20 20 20 20 26 28 28 28 28 28 28 28 28 28 28 28 28 28 28 28 24 4 Most Carried 28 | 2 6 6 8 9 20 20 20 20 20 19 20 28 28 28 28 28 21 24 24 24 26 28 28 28 28 28 28 28 4 Average Carried 20 | 1 5 6 6 8 16 19 19 19 19 19 19 26 28 28 27 24 20 22 23 22 23 27 27 27 27 28 27 23 3 Final Capacity 28 | 6 6 6 16 16 20 20 20 20 20 20 20 28 28 28 28 28 28 28 28 28 28 28 28 28 28 28 28 4 4 Final Carried 28 | 2 6 6 8 9 17 19 20 20 19 19 20 28 28 28 28 20 21 23 24 22 26 28 28 28 28 28 27 4 2 Class Distribution -------------------- 33% | Hauler-Skirmisher 26% | Hauler-Mutant 11% | Mutant 8% | Hauler-Tank 7% | Scavenger-Tank 3% | Scavenger-Gunner Dominant Class ---------------- Mutant | -10/Materials Mutant | -10/Mines Mutant | -10/Exiles Mutant | -9/Mines Hauler-Tank | -8/Materials Hauler-Tank | -7/Factory Scavenger-Skirmisher | -7/Lower Caves Hauler-Skirmisher | -7/Lower Caves Hauler-Skirmisher | -7/Zion Hauler-Skirmisher | -6/Proximity Caves Hauler-Mutant | -6/Factory Hauler-Skirmisher | -6/Waste Hauler-Mutant | -6/Factory Hauler-Mutant | -6/Lower Caves Hauler-Skirmisher | -6/Lower Caves Hauler-Mutant | -6/Data Miner Hauler-Mutant | -5/Proximity Caves Hauler-Mutant | -5/Factory Hauler-Skirmisher | -5/Upper Caves Hauler-Skirmisher | -5/Upper Caves Hauler-Mutant | -5/Zhirov Hauler-Mutant | -4/Proximity Caves Hauler-Skirmisher | -4/Factory Scavenger-Gunner | -4/Extension Scavenger-Gunner | -4/Cetus Scavenger-Tank | -4/Archives Scavenger-Tank | -4/Hub_04(d) Scavenger-Tank | -3/Research Mutant | -3/Quarantine Resources | -11 -10 -10 -10 -9 -8 -7 -7 -7 -7 -6 -6 -6 -6 -6 -6 -6 -5 -5 -5 -5 -5 -4 -4 -4 -4 -4 -4 -3 -3 ----------- Run | Scr Mat Min Exi Min Mat Fac Low Low Zio Pro Fac Was Fac Low Low Dat Pro Fac Upp Upp Zhi Pro Fac Ext Cet Arc Hub Res Qua Matter Collected 8020 | 234 244 56 . 44 957 573 174 201 19 21 204 345 230 180 104 359 137 35 334 38 237 487 17 1439 434 152 392 345 28 Remotely . | . . . . . . . . . . . . . . . . . . . . . . . . . . . . . . Salvage Created 13706 | . 378 85 . . 1611 812 . 194 . . 228 1569 629 365 103 403 437 569 440 16 380 927 97 1521 506 264 1284 860 28 Parts 597 | . 25 8 . . 86 41 . 11 . . 14 26 38 13 11 14 24 21 16 3 14 40 8 57 15 8 57 45 2 Haulers Intercepted 6 | . 1 . . . 3 . . . . . . . . . . . . . 1 . . . . . . . 1 . . Recyclers Shooed 5 | . . . . . 1 . . . . . . . 1 . . . . . . . . . . 3 . . . . . Parts Field Recycled . | . . . . . . . . . . . . . . . . . . . . . . . . . . . . . . Retrieved Matter . | . . . . . . . . . . . . . . . . . . . . . . . . . . . . . . Parts Self-Destructed 111 | . . . . . . . 2 10 . . . . . 4 4 . 23 . 9 2 12 45 . . . . . . . Prevented 21 | . . . . . . . . . . . . . . 13 . . 1 . 6 . . 1 . . . . . . . Kills | -11 -10 -10 -10 -9 -8 -7 -7 -7 -7 -6 -6 -6 -6 -6 -6 -6 -5 -5 -5 -5 -5 -4 -4 -4 -4 -4 -4 -3 -3 ------- Run | Scr Mat Min Exi Min Mat Fac Low Low Zio Pro Fac Was Fac Low Low Dat Pro Fac Upp Upp Zhi Pro Fac Ext Cet Arc Hub Res Qua Combat Hostiles Destroyed 180 | . 10 5 . . 27 14 . 4 . . 4 6 6 5 4 4 7 4 5 1 . 16 1 20 6 3 12 16 . Melee 12 | . . . . . 1 . . . . . 1 . . . . . 5 4 . . . . . . . . . 1 . Guns 125 | . 8 5 . . 26 9 . 3 . . 3 6 2 1 1 4 . . 3 1 . 16 1 12 5 1 7 11 . Cannons 27 | . 2 . . . . 5 . 1 . . . . . . . . 1 . . . . . . 8 1 2 5 2 . AOE 9 | . . . . . . . . . . . . . 3 1 3 . . . 2 . . . . . . . . . . Classes Destroyed 20 | . 3 . . . 6 4 . . . . . 1 2 . 1 . . . . . . 2 . 1 . . . . . Worker 14 | . . . . . 1 . . . . . 1 . 3 . . . . 1 . . . . 1 . . . 6 . 1 Builder 14 | . . . . . 3 . . . . . . . 2 . . . . . . . . . . 3 . . 5 1 . Tunneler 2 | . . . . . 1 1 . . . . . . . . . . . . . . . . . . . . . . . Hauler 6 | . 1 . . . 3 . . . . . . . . . . . . . 1 . . . . . . . 1 . . Recycler 9 | . . . . . 2 1 . . . . . . . . . . . 2 . . . . . 2 . . 2 . . Operator 1 | . . . . . . 1 . . . . . . . . . . . . . . . . . . . . . . . Watcher 2 | . . . . . . 1 . . . . . . . . . . . . . . . . . . . . 1 . . Swarmer 37 | . 3 5 . . 6 . . . . . . . . . 3 . . . . . . 4 . 4 . . 3 9 . Saboteur 2 | . . . . . . . . . . . . . . . . . . . . . . 1 . . . . . 1 . Grunt 72 | . 7 . . . 15 8 . 3 . . 3 . 3 4 . . 3 2 4 . . 7 . 8 3 . . 2 . Brawler 3 | . . . . . . . . . . . . . . . . . . . . . . 1 . 1 . . . 1 . Duelist 6 | . . . . . 1 . . 1 . . . . 1 . . . . . . . . 2 1 . . . . . . Protector 1 | . . . . . . . . . . . . . 1 . . . . . . . . . . . . . . . . Sentry 22 | . . . . . 5 3 . . . . . . 1 . . . . 1 1 . . 1 . 4 . 3 2 1 . Hunter 13 | . . . . . . 2 . . . . . . . 1 . . 2 1 . . . . . 2 . . 3 2 . Programmer 8 | . . . . . . 1 . . . . 1 . . . . . 2 . . . . . . . . . 4 . . Behemoth 1 | . . . . . . . . . . . . . . . . . . . . . . . . 1 . . . . . Compactor 6 | . . . . . . . . . . . . 6 . . . . . . . . . . . . . . . . . Cetus Guard 3 | . . . . . . . . . . . . . . . . . . . . . . . . . 3 . . . . Enhanced Grunt 4 | . . . . . . . . . . . . . . . . 4 . . . . . . . . . . . . . Master Thief 2 | . . . . . . . . . . . . . . . 1 . . . . 1 . . . . . . . . . Thug 3 | . . . . . . . . . . . . . . . . . . . . . . . . 2 1 . . . . Martyr 2 | . . . . . . . . . . . . . 2 . . . . . . . . . . . . . . . . Guerrilla 1 | . . . . . . . . . . . . . . . . . . . . . . . . . 1 . . . . Best Kill Streak 10 | . 3 3 . . 4 7 . 3 . . 4 3 9 4 3 3 3 2 4 1 . 5 1 4 3 2 10 4 1 Combat Bots Only 5 | . 3 3 . . 4 5 . 3 . . 3 3 4 4 3 3 3 2 4 1 . 5 1 4 3 2 5 4 . Max Kills in Single Turn 4 | . 1 1 . . 2 2 . 1 . . 1 1 2 2 2 1 1 1 2 1 . 3 1 2 1 1 4 2 1 Gunslinging 1 | . . . . . . . . . . . . . . . . . . . . . . 1 . . . . . . . Exploded 2 | . . . . . . . . . . . . . 1 1 2 . . . 2 . . . . . . . . . . Melee 1 | . . . . . 1 . . . . . 1 . . . . . 1 1 . . . . . . . . . 1 . Uniques/NPCs Destroyed . | . . . . . . . . . . . . . . . . . . . . . . . . . . . . . . Combat | -11 -10 -10 -10 -9 -8 -7 -7 -7 -7 -6 -6 -6 -6 -6 -6 -6 -5 -5 -5 -5 -5 -4 -4 -4 -4 -4 -4 -3 -3 -------- Run | Scr Mat Min Exi Min Mat Fac Low Low Zio Pro Fac Was Fac Low Low Dat Pro Fac Upp Upp Zhi Pro Fac Ext Cet Arc Hub Res Qua Damage Taken 21984 | . 543 153 25 . 1773 1040 . 160 . . 322 . 486 431 79 2588 1906 1027 317 54 . 857 . 3044 945 52 714 4774 694 Core 2513 | . 35 . . . 103 42 . 15 . . 18 . 43 59 . 330 135 195 19 10 . 60 . 169 60 . 2 1101 117 Absorbed by Shields 22 | . . . . . . . . . . . . . . . . . . . . . . . . 22 . . . . . Reduced by Siege Mode 177 | . . . . . . . . . . . . . . . . 150 . . . . . . . 13 14 . . . . Core Remaining (%) 77 | 100 . . . 86 81 . . . . 91 . . . . . . 31 . . . . 71 . . . . 79 . . Volleys Fired 553 | . 44 9 1 . 100 33 . 9 . . 12 15 12 16 9 18 26 . 18 9 14 25 4 67 18 8 38 47 1 Largest 4 | . 2 2 1 . 3 3 . 3 . . 3 3 2 2 3 3 3 . 4 4 1 4 3 4 4 4 4 3 1 Hottest 187 | . 55 40 35 . 80 104 . 104 . . 104 84 56 90 84 86 113 . 141 112 20 119 84 187 185 163 170 105 35 Shots Fired 1456 | . 80 18 1 . 300 98 . 27 . . 31 45 16 21 21 46 30 . 42 36 14 96 12 232 72 32 82 103 1 Gun 1177 | . 65 18 . . 300 65 . 18 . . 20 45 8 10 18 45 4 . 26 36 . 95 12 163 50 24 65 89 1 Cannon 237 | . 15 . 1 . . 33 . 9 . . 9 . . 1 . . 26 . 13 . . . . 69 22 8 17 14 . Launcher 24 | . . . . . . . . . . . . . 8 10 3 . . . 3 . . . . . . . . . . Special 18 | . . . . . . . . . . . 2 . . . . 1 . . . . 14 1 . . . . . . . Kinetic 1349 | . 80 18 1 . 287 98 . 27 . . 29 45 8 10 18 45 6 . 39 36 . 95 12 232 72 32 69 89 1 Thermal 39 | . . . . . . . . . . . . . . 1 . . 24 . . . 14 . . . . . . . . Explosive . | . . . . . . . . . . . . . . . . . . . . . . . . . . . . . . Electromagnetic 64 | . . . . . 13 . . . . . . . 8 10 3 . . . 3 . . . . . . . 13 14 . Robot Hit Streak 31 | . 20 5 . . 20 21 . 9 . . 10 10 12 9 5 20 5 . 8 5 11 19 29 31 28 11 17 8 . Robot Miss Streak 9 | . 2 4 . . 4 6 . 6 . . 3 4 4 3 9 4 7 . 4 5 1 2 . 5 2 1 2 3 2 Penetration Max 2 | . . . . . . . . . . . . . . . . . . . 1 . . 1 . 2 1 1 2 1 . Secondary Targets 20 | . . 2 . . 4 . . . . . . 2 . . . 2 . . . . . 6 . 1 . . 2 1 . Max Gunslinging Chain 2 | . . 1 . . 1 . . . . . . 1 . . . 1 . . . . . 2 . 1 . . 1 1 . Shots Hit Robots 1063 | . 57 8 . . 206 76 . 24 . . 26 43 14 9 15 43 33 17 19 15 13 73 11 158 55 26 57 65 . Core Hits 694 | . 22 6 . . 75 59 . 15 . . 23 75 34 12 13 68 10 10 16 3 9 44 6 75 29 13 47 29 1 Critical Hits 42 | . . . . . 1 2 . . . . 1 . . . . . 1 2 2 1 . 1 . 7 7 3 10 4 . Critical Kills 16 | . . . . . . 2 . . . . . . . . . . . 2 . . . . . 3 2 . 5 2 . Critical Parts Destroyed 25 | . . . . . 1 . . . . . 1 . . . . . 1 . 2 1 . 1 . 4 5 2 5 2 . Melee Attacks 128 | . . . . . . 2 . . . . 19 . 3 1 . 5 20 36 9 . . 22 3 . . . 2 6 . Impact . | . . . . . . . . . . . . . . . . . . . . . . . . . . . . . . Slashing 128 | . . . . . . 2 . . . . 19 . 3 1 . 5 20 36 9 . . 22 3 . . . 2 6 . Piercing . | . . . . . . . . . . . . . . . . . . . . . . . . . . . . . . Sneak Attacks 8 | . . . . . . . . . . . . . 3 . . . . 4 . . . . 1 . . . . . . Combat Hostiles . | . . . . . . . . . . . . . . . . . . . . . . . . . . . . . . Follow-up Attacks . | . . . . . . . . . . . . . . . . . . . . . . . . . . . . . . Damage Inflicted 29931 | . 605 134 . . 2741 1453 . 264 . . 488 1418 1312 576 380 1183 1348 1064 838 261 169 1848 377 5478 1931 919 3107 2025 12 Guns 20195 | . 465 134 . . 2730 1036 . 186 . . 277 1418 182 85 261 1183 6 . 435 261 . 1848 233 4000 1339 652 2110 1354 . Cannons 4791 | . 140 . . . . 377 . 78 . . 144 . . . . . 729 . 57 . . . . 1478 592 267 411 518 . Explosions 2426 | . . . . . . 36 . . . . . . 782 491 119 . . . 295 . . . . . . . 586 117 . Melee 2322 | . . . . . . . . . . . 67 . 348 . . . 613 1064 51 . . . 144 . . . . 35 . Ramming 28 | . . . . . 11 4 . . . . . . . . . . . . . . . . . . . . . 1 12 Kinetic 23249 | . 605 134 . . 2599 1413 . 264 . . 421 1418 182 85 261 1183 24 . 492 261 . 1848 233 5478 1931 919 2144 1354 . Thermal 1057 | . . . . . . . . . . . . . 152 . . . 711 . . . 169 . . . . . 25 . . Explosive . | . . . . . . . . . . . . . . . . . . . . . . . . . . . . . . Electromagnetic 3275 | . . . . . 131 36 . . . . . . 630 491 119 . . . 295 . . . . . . . 938 635 . Impact . | . . . . . . . . . . . . . . . . . . . . . . . . . . . . . . Slashing 2322 | . . . . . . . . . . . 67 . 348 . . . 613 1064 51 . . . 144 . . . . 35 . Piercing . | . . . . . . . . . . . . . . . . . . . . . . . . . . . . . . Highest Corruption 2 | . . . . . . 1 1 1 1 . . . . . . . 2 . . . . . . . . . . . . Average Corruption 1 | . . . . . . 1 1 1 1 . . . . . . . 1 . . . . . . . . . . . . Corruption Purged . | . . . . . . . . . . . . . . . . . . . . . . . . . . . . . . Effects 23 | . . . . . . 3 6 4 1 . . . . . . . 9 . . . . . . . . . . . . Message Errors 12 | . . . . . . 1 5 3 1 . . . . . . . 2 . . . . . . . . . . . . Energy Discharges 2 | . . . . . . 1 1 . . . . . . . . . . . . . . . . . . . . . . Data Loss (minor) 7 | . . . . . . 1 . . . . . . . . . . 6 . . . . . . . . . . . . Targeting Errors 2 | . . . . . . . . 1 . . . . . . . . 1 . . . . . . . . . . . . Overload Shots . | . . . . . . . . . . . . . . . . . . . . . . . . . . . . . . Overflow Damage 389 | . 5 . . . . . . 7 . . . . 68 . . . 28 82 14 . 1 . . 58 25 . 60 41 . Projectiles 140 | . 5 . . . . . . 7 . . . . . . . . 9 . 14 . 1 . . 58 25 . 12 9 . Explosions 80 | . . . . . . . . . . . . . . . . . . . . . . . . . . . 48 32 . Melee 169 | . . . . . . . . . . . . . 68 . . . 19 82 . . . . . . . . . . . Knockbacks 14 | . 1 . . . . 1 . 1 . . 1 . . . . . . . 1 . . . . 7 1 1 . . . Impact . | . . . . . . . . . . . . . . . . . . . . . . . . . . . . . . Kinetic 14 | . 1 . . . . 1 . 1 . . 1 . . . . . . . 1 . . . . 7 1 1 . . . Secondary . | . . . . . . . . . . . . . . . . . . . . . . . . . . . . . . Self-Inflicted Damage 160 | . . . . . . 35 . . . . . . . 54 . . . . . . . . . . . . 15 50 6 Shots 10 | . . . . . . 2 . . . . . . . 5 . . . . . . . . . . . . 2 1 . Rammed 4 | . . . . . 1 1 . . . . . . . . . . . . . . . . . . . . . 1 1 Targets Rammed 4 | . . . . . 1 1 . . . . . . . . . . . . . . . . . . . . . 1 1 Kicked . | . . . . . . . . . . . . . . . . . . . . . . . . . . . . . . Crushed . | . . . . . . . . . . . . . . . . . . . . . . . . . . . . . . Highest Temperature 410 | . 26 . . . 305 329 . 15 . . 24 . . . . . 72 . 120 105 . 399 . 410 84 36 342 285 . Average Temperature 92 | . 9 . . . 78 127 . 6 . . 10 . . . . . 28 . 46 57 . 108 . 130 26 18 80 117 . Received Heat Transfer 4081 | . 198 . . . 882 429 . 99 . . 120 . 96 168 . 330 42 171 120 . . 111 . 532 147 . . 447 189 Effects 19 | . . . . . . 4 . . . . . . . . . . . . . . . 2 . 10 . . 1 2 . Shutdowns 5 | . . . . . . . . . . . . . . . . . . . . . . 2 . 2 . . 1 . . Energy Bleed 3 | . . . . . . . . . . . . . . . . . . . . . . . . 2 . . . 1 . Interference 9 | . . . . . . 4 . . . . . . . . . . . . . . . . . 4 . . . 1 . Matter Decay 1 | . . . . . . . . . . . . . . . . . . . . . . . . 1 . . . . . Short Circuit 1 | . . . . . . . . . . . . . . . . . . . . . . . . 1 . . . . . Siege Activations 3 | . . . . . . . . . . . . . . . . 1 . . . . . . . 1 1 . . . . Total Turns 58 | . . . . . . . . . . . . . . . . 36 . . . . . . . 10 12 . . . . Longest Duration 36 | . . . . . . . . . . . . . . . . 36 . . . . . . . 10 12 . . . . Robots Corrupted 6 | . . . . . . . . . . . . . 1 3 . . . . . . . . . . . . . 2 . Combat Hostiles 6 | . . . . . . . . . . . . . 1 3 . . . . . . . . . . . . . 2 . Parts Fried 18 | . . . . . 2 . . . . . . . 2 5 1 . . . 1 . . . . . . . 2 5 . Impact Corruptions . | . . . . . . . . . . . . . . . . . . . . . . . . . . . . . . Robots Melted . | . . . . . . . . . . . . . . . . . . . . . . . . . . . . . . Combat Hostiles . | . . . . . . . . . . . . . . . . . . . . . . . . . . . . . . Parts Melted 1 | . . . . . . . . . . . . . . 1 . . . . . . . . . . . . . . . Heat Transferred 1450 | . . . . . . . . . . . . . 300 . . . 703 . . . 397 . . . . . 50 . . Parts Sabotaged . | . . . . . . . . . . . . . . . . . . . . . . . . . . . . . . Parts Stolen 7 | . . . . . . . . . . . . . . . 3 . . . . 4 . . . . . . . . . Parts Stripped . | . . . . . . . . . . . . . . . . . . . . . . . . . . . . . . Power Chain Reactions 4 | . . . . . . . . . . . . . 3 . . . . . . . . . . . . . 1 . . Missiles Intercepted . | . . . . . . . . . . . . . . . . . . . . . . . . . . . . . . Alert | -11 -10 -10 -10 -9 -8 -7 -7 -7 -7 -6 -6 -6 -6 -6 -6 -6 -5 -5 -5 -5 -5 -4 -4 -4 -4 -4 -4 -3 -3 ------- Run | Scr Mat Min Exi Min Mat Fac Low Low Zio Pro Fac Was Fac Low Low Dat Pro Fac Upp Upp Zhi Pro Fac Ext Cet Arc Hub Res Qua Peak Influence 1048 | . 242 155 . . 425 353 . . . . 93 15 1010 . . . . 153 . . . . 147 732 796 461 1048 759 615 Initial 498 | . . 55 . . . 193 . . . . . . . . . . . . . . . . 117 9 347 274 161 498 366 Average 254 | . 78 124 . . 168 184 . . . . 15 6 736 . . . . 41 . . . . 118 315 634 411 564 610 423 Maximum Alert Level 3 | . 1 . . . 2 1 . . . . . . 3 . . . . . . . . . . 3 3 2 3 3 2 Low Security (%) 57 | 100 95 100 . 100 54 60 . . . . 100 100 10 . . . . 100 . . . . 100 36 . . 3 . . Level 1 18 | . 4 . . . 44 39 . . . . . . 5 . . . . . . . . . . 25 7 29 51 . 33 Level 2 13 | . . . . . 1 . . . . . . . 16 . . . . . . . . . . 30 51 70 . 94 66 Level 3 10 | . . . . . . . . . . . . . 67 . . . . . . . . . . 7 41 . 45 5 . Level 4 . | . . . . . . . . . . . . . . . . . . . . . . . . . . . . . . Level 5 . | . . . . . . . . . . . . . . . . . . . . . . . . . . . . . . High Security . | . . . . . . . . . . . . . . . . . . . . . . . . . . . . . . Max Security . | . . . . . . . . . . . . . . . . . . . . . . . . . . . . . . Squads Dispatched 45 | . 3 . . . 3 3 . . . . 2 . 11 . . . . 1 . . . 1 1 3 . . 5 8 4 Investigation 4 | . 2 . . . 2 . . . . . . . . . . . . . . . . . . . . . . . . Extermination 6 | . . . . . . 1 . . . . 1 . 1 . . . . . . . . . . . . . 2 . 1 Reinforcement 18 | . 1 . . . 1 2 . . . . 1 . 3 . . . . . . . . . . 2 . . 2 3 3 Assault 8 | . . . . . . . . . . . . . 3 . . . . . . . . 1 . 1 . . 1 2 . Garrison 8 | . . . . . . . . . . . . . 4 . . . . . . . . . 1 . . . . 3 . Intercept 1 | . . . . . . . . . . . . . . . . . . 1 . . . . . . . . . . . Construction Impeded 5 | . . . . . . . . . . . . . 1 . . . . . . . . . . 1 . . 1 2 . Haulers Reinforced 1 | . . . . . . 1 . . . . . . . . . . . . . . . . . . . . . . . Stealth | -11 -10 -10 -10 -9 -8 -7 -7 -7 -7 -6 -6 -6 -6 -6 -6 -6 -5 -5 -5 -5 -5 -4 -4 -4 -4 -4 -4 -3 -3 --------- Run | Scr Mat Min Exi Min Mat Fac Low Low Zio Pro Fac Was Fac Low Low Dat Pro Fac Upp Upp Zhi Pro Fac Ext Cet Arc Hub Res Qua Distress Signals 17 | . 1 . . . 3 1 . . . . . . 1 . . . . 2 . . . . . 2 2 . 4 1 . Communications Jammed . | . . . . . . . . . . . . . . . . . . . . . . . . . . . . . . Distress Signals . | . . . . . . . . . . . . . . . . . . . . . . . . . . . . . . Times Spotted 357 | . 22 5 3 . 44 21 . 5 . . 6 6 30 5 8 5 8 14 7 5 . 26 2 43 20 9 19 32 12 Peak Tracking Total 9 | . 6 3 9 . 6 4 . 4 . . 3 3 8 4 4 4 3 5 5 5 . 7 1 6 5 1 5 8 8 Tactical Retreats 20 | . 1 . . . 5 . . 1 . . . . . . 1 . 2 1 3 . . . . . . . 2 2 2 Traps | -11 -10 -10 -10 -9 -8 -7 -7 -7 -7 -6 -6 -6 -6 -6 -6 -6 -5 -5 -5 -5 -5 -4 -4 -4 -4 -4 -4 -3 -3 ------- Run | Scr Mat Min Exi Min Mat Fac Low Low Zio Pro Fac Was Fac Low Low Dat Pro Fac Upp Upp Zhi Pro Fac Ext Cet Arc Hub Res Qua Traps Triggered 14 | . 1 . . . 2 2 . . . . 1 . 3 . . . . 1 . . . . . 2 . . 1 1 . Indirectly . | . . . . . . . . . . . . . . . . . . . . . . . . . . . . . . Trap Hack Attempts . | . . . . . . . . . . . . . . . . . . . . . . . . . . . . . . Triggered . | . . . . . . . . . . . . . . . . . . . . . . . . . . . . . . Disarmed . | . . . . . . . . . . . . . . . . . . . . . . . . . . . . . . Reprogrammed . | . . . . . . . . . . . . . . . . . . . . . . . . . . . . . . Reused . | . . . . . . . . . . . . . . . . . . . . . . . . . . . . . . Traps Extracted . | . . . . . . . . . . . . . . . . . . . . . . . . . . . . . . Installed . | . . . . . . . . . . . . . . . . . . . . . . . . . . . . . . Triggered 5 | . . . . . . . . . . . . . . . . . 2 . . 2 . 1 . . . . . . . Machines | -11 -10 -10 -10 -9 -8 -7 -7 -7 -7 -6 -6 -6 -6 -6 -6 -6 -5 -5 -5 -5 -5 -4 -4 -4 -4 -4 -4 -3 -3 ---------- Run | Scr Mat Min Exi Min Mat Fac Low Low Zio Pro Fac Was Fac Low Low Dat Pro Fac Upp Upp Zhi Pro Fac Ext Cet Arc Hub Res Qua Machines Disabled 28 | . 3 . 1 . 2 2 . . . . . . 2 . . . . . . . . 1 . 2 . 4 10 1 . Max in Single Turn 7 | . 1 . 1 . 1 1 . . . . . . . . . . . . . . . . . 1 . 1 7 1 . Garrison Access 3 | . . . . . . . . . . . 2 . 1 . . . . . . . . . . . . . . . . Network Hub 2 | . . . . . . . . . . . . . . . . . . . . . . . . . . . 2 . . Machines Sabotaged . | . . . . . . . . . . . . . . . . . . . . . . . . . . . . . . Garrisons Compromised . | . . . . . . . . . . . . . . . . . . . . . . . . . . . . . . Overloaded Fab Kills . | . . . . . . . . . . . . . . . . . . . . . . . . . . . . . . Fab Network Shutdowns . | . . . . . . . . . . . . . . . . . . . . . . . . . . . . . . Hacking | -11 -10 -10 -10 -9 -8 -7 -7 -7 -7 -6 -6 -6 -6 -6 -6 -6 -5 -5 -5 -5 -5 -4 -4 -4 -4 -4 -4 -3 -3 --------- Run | Scr Mat Min Exi Min Mat Fac Low Low Zio Pro Fac Was Fac Low Low Dat Pro Fac Upp Upp Zhi Pro Fac Ext Cet Arc Hub Res Qua Machines Accessed 50 | . 4 . 2 . 5 4 . 1 1 . 7 . 3 . . 4 . 1 . . 4 . 2 5 . . . 2 5 Terminals 28 | . 4 . . . 5 3 . 1 . . 3 . 2 . . . . 1 . . . . . 5 . . . 1 3 Fabricators 2 | . . . . . . . . . . . . . . . . . . . . . . . 1 . . . . 1 . Repair Stations 2 | . . . . . . . . . . . . . 1 . . . . . . . . . 1 . . . . . . Recycling Units 1 | . . . . . . . . . . . 1 . . . . . . . . . . . . . . . . . . Scanalyzers 3 | . . . . . . . . . . . 1 . . . . . . . . . . . . . . . . . 2 Garrison Access 3 | . . . . . . 1 . . . . 2 . . . . . . . . . . . . . . . . . . Total Hacks 142 | . 9 . 2 . 11 11 . 1 5 . 18 . 6 . . 27 . 2 . . 13 . 6 10 . . . 5 16 Successful 89 | . 5 . 2 . 7 2 . 1 5 . 9 . 1 . . 27 . 1 . . 13 . 3 5 . . . 3 5 Failed 53 | . 4 . . . 4 9 . . . . 9 . 5 . . . . 1 . . . . 3 5 . . . 2 11 Catastrophic 13 | . 1 . . . 1 2 . . . . 1 . 1 . . . . 1 . . . . 1 1 . . . 1 3 Database Lockouts . | . . . . . . . . . . . . . . . . . . . . . . . . . . . . . . Manual 49 | . 9 . 1 . 9 8 . . . . 2 . 1 . . . . 2 . . . . 2 4 . . . 1 10 Terminals 67 | . 9 . . . 11 8 . 1 . . 10 . 4 . . . . 2 . . . . . 10 . . . 1 11 Fabricators 8 | . . . . . . . . . . . . . . . . . . . . . . . 4 . . . . 4 . Repair Stations 4 | . . . . . . . . . . . . . 2 . . . . . . . . . 2 . . . . . . Recycling Units 2 | . . . . . . . . . . . 2 . . . . . . . . . . . . . . . . . . Scanalyzers 7 | . . . . . . . . . . . 2 . . . . . . . . . . . . . . . . . 5 Garrison Access 7 | . . . . . . 3 . . . . 4 . . . . . . . . . . . . . . . . . . Terminal Hacks 64 | . 2 . 2 . 2 1 . 1 5 . 3 . . . . 27 . . . . 13 . . 5 . . . 1 2 Record 24 | . . . 1 . . . . 1 . . 1 . . . . 11 . . . . 5 . . 3 . . . . 2 Part Schematic 18 | . . . . . . . . . 5 . . . . . . 9 . . . . 4 . . . . . . . . Robot Schematic 4 | . . . . . . . . . . . . . . . . 4 . . . . . . . . . . . . . Robot Analysis 1 | . 1 . . . . . . . . . . . . . . . . . . . . . . . . . . . . Prototype ID Bank 7 | . . . . . . . . . . . . . . . . 3 . . . . 4 . . . . . . . . Open Door 3 | . . . . . . . . . . . . . . . . . . . . . . . . 2 . . . 1 . Branch Access Points 1 | . . . . . . 1 . . . . . . . . . . . . . . . . . . . . . . . Hauler Manifests 1 | . . . . . . . . . . . 1 . . . . . . . . . . . . . . . . . . Registered Prototypes 1 | . . . . . 1 . . . . . . . . . . . . . . . . . . . . . . . . Zone Layout 3 | . 1 . . . 1 . . . . . 1 . . . . . . . . . . . . . . . . . . EX-Prototype ID Bank 1 | . . . 1 . . . . . . . . . . . . . . . . . . . . . . . . . . Fabricator Hacks 4 | . . . . . . . . . . . . . . . . . . . . . . . 2 . . . . 2 . Load Schematic 2 | . . . . . . . . . . . . . . . . . . . . . . . 1 . . . . 1 . Build 2 | . . . . . . . . . . . . . . . . . . . . . . . 1 . . . . 1 . Repair Station Hacks 2 | . . . . . . . . . . . . . 1 . . . . . . . . . 1 . . . . . . Scan Component 2 | . . . . . . . . . . . . . 1 . . . . . . . . . 1 . . . . . . Recycling Unit Hacks 1 | . . . . . . . . . . . 1 . . . . . . . . . . . . . . . . . . Retrieve Components 1 | . . . . . . . . . . . 1 . . . . . . . . . . . . . . . . . . Scanalyzer 2 | . . . . . . . . . . . 2 . . . . . . . . . . . . . . . . . . Insert Component 1 | . . . . . . . . . . . 1 . . . . . . . . . . . . . . . . . . Analyze 1 | . . . . . . . . . . . 1 . . . . . . . . . . . . . . . . . . Garrison Access Hacks 2 | . . . . . . . . . . . 2 . . . . . . . . . . . . . . . . . . Seal Access 2 | . . . . . . . . . . . 2 . . . . . . . . . . . . . . . . . . Unauthorized Hacks 14 | . 3 . . . 5 1 . . . . 1 . . . . . . 1 . . . . . . . . . . 3 Terminals 13 | . 3 . . . 5 1 . . . . 1 . . . . . . 1 . . . . . . . . . . 2 Track 9 | . 1 . . . 3 1 . . . . 1 . . . . . . 1 . . . . . . . . . . 2 Assimilate 1 | . 1 . . . . . . . . . . . . . . . . . . . . . . . . . . . . Botnet 1 | . . . . . 1 . . . . . . . . . . . . . . . . . . . . . . . . Operators 2 | . 1 . . . 1 . . . . . . . . . . . . . . . . . . . . . . . . Fabricators . | . . . . . . . . . . . . . . . . . . . . . . . . . . . . . . Repair Stations . | . . . . . . . . . . . . . . . . . . . . . . . . . . . . . . Recycling Units . | . . . . . . . . . . . . . . . . . . . . . . . . . . . . . . Scanalyzers 1 | . . . . . . . . . . . . . . . . . . . . . . . . . . . . . 1 Researchers 1 | . . . . . . . . . . . . . . . . . . . . . . . . . . . . . 1 Garrison Access . | . . . . . . . . . . . . . . . . . . . . . . . . . . . . . . Data Cores Recovered . | . . . . . . . . . . . . . . . . . . . . . . . . . . . . . . Used . | . . . . . . . . . . . . . . . . . . . . . . . . . . . . . . Hacking Detections 28 | . 3 . . . 5 4 . . . . 4 . 3 . . . . 1 . . . . 2 2 . . . 1 3 Full Trace Events 1 | . 1 . . . . . . . . . . . . . . . . . . . . . . . . . . . . Feedback Events . | . . . . . . . . . . . . . . . . . . . . . . . . . . . . . . Feedback Blocked . | . . . . . . . . . . . . . . . . . . . . . . . . . . . . . . Robot Schematics Acquired 4 | . . . . . . . . . . . . . . . . 4 . . . . . . . . . . . . . Robots Built 1 | . . . . . . . . . . . . . . . . . . . . . . . 1 . . . . . . Matter 252 | . . . . . . . . . . . . . . . . . . . . . . . 252 . . . . . . Time 134 | . . . . . . . . . . . . . . . . . . . . . . . 134 . . . . . . Total Robot Build Rating 4 | . . . . . . . . . . . . . . . . . . . . . . . 4 . . . . . . Part Schematics Acquired 19 | . . . . . . . . . 5 . 1 . . . . 9 . . . . 4 . . . . . . . . Parts Built 1 | . . . . . . . . . . . . . . . . . . . . . . . . . . . . 1 . Matter 285 | . . . . . . . . . . . . . . . . . . . . . . . . . . . . 285 . Time 50 | . . . . . . . . . . . . . . . . . . . . . . . . . . . . 50 . Total Part Build Rating 5 | . . . . . . . . . . . . . . . . . . . . . . . . . . . . 5 . Parts Repaired . | . . . . . . . . . . . . . . . . . . . . . . . . . . . . . . Time . | . . . . . . . . . . . . . . . . . . . . . . . . . . . . . . Parts Recycled . | . . . . . . . . . . . . . . . . . . . . . . . . . . . . . . Recycled Matter . | . . . . . . . . . . . . . . . . . . . . . . . . . . . . . . Retrieved Matter . | . . . . . . . . . . . . . . . . . . . . . . . . . . . . . . Retrieved Components 2 | . . . . . . . . . . . 2 . . . . . . . . . . . . . . . . . . Parts Scanalyzed 1 | . . . . . . . . . . . 1 . . . . . . . . . . . . . . . . . . Part Schematics Acquired 1 | . . . . . . . . . . . 1 . . . . . . . . . . . . . . . . . . Parts Damaged . | . . . . . . . . . . . . . . . . . . . . . . . . . . . . . . Bothacking | -11 -10 -10 -10 -9 -8 -7 -7 -7 -7 -6 -6 -6 -6 -6 -6 -6 -5 -5 -5 -5 -5 -4 -4 -4 -4 -4 -4 -3 -3 ------------ Run | Scr Mat Min Exi Min Mat Fac Low Low Zio Pro Fac Was Fac Low Low Dat Pro Fac Upp Upp Zhi Pro Fac Ext Cet Arc Hub Res Qua Used RIF Installer . | . . . . . . . . . . . . . . . . . . . . . . . . . . . . . . Robots Hacked 1 | . . . . . . . . . . . 1 . . . . . . . . . . . . . . . . . . Non-combat 1 | . . . . . . . . . . . 1 . . . . . . . . . . . . . . . . . . Combat . | . . . . . . . . . . . . . . . . . . . . . . . . . . . . . . Robot Hacks Applied 1 | . . . . . . . . . . . 1 . . . . . . . . . . . . . . . . . . find_chute 1 | . . . . . . . . . . . 1 . . . . . . . . . . . . . . . . . . Relay Couplers Released . | . . . . . . . . . . . . . . . . . . . . . . . . . . . . . . Robots Rewired 23 | . . . . . . . . . . . . . . . . . . . . . . 2 . 21 . . . . . Allies Hacked . | . . . . . . . . . . . . . . . . . . . . . . . . . . . . . . Hacks Repelled . | . . . . . . . . . . . . . . . . . . . . . . . . . . . . . . Allies | -11 -10 -10 -10 -9 -8 -7 -7 -7 -7 -6 -6 -6 -6 -6 -6 -6 -5 -5 -5 -5 -5 -4 -4 -4 -4 -4 -4 -3 -3 -------- Run | Scr Mat Min Exi Min Mat Fac Low Low Zio Pro Fac Was Fac Low Low Dat Pro Fac Upp Upp Zhi Pro Fac Ext Cet Arc Hub Res Qua Total Allies 58 | . . . . . . . . . 4 . . 18 . . . . . . . . . 3 1 24 . . . . 8 Largest Group 18 | . . . . . . . . . 4 4 . 18 17 . . . . . . . . 2 1 10 7 2 1 . 7 Highest-Rated Group 668 | . . . . . . . . . 112 112 . 668 618 . . . . . . . . 115 37 525 334 96 49 . 102 Highest-Rated Ally 156 | . . . . . . . . . 31 31 . 50 50 . . . . . . . . 115 37 156 49 49 49 . 15 Total Orders 2 | . . . . . . . . . . . . . 2 . . . . . . . . . . . . . . . . RETURN 2 | . . . . . . . . . . . . . 2 . . . . . . . . . . . . . . . . Ally Attacks 456 | . . . . . . . . . . 7 . . 191 . . . . . . . . 5 . 117 69 8 . . 59 Total Damage 10683 | . . . . . . . . . . 142 . . 4130 . . . . . . . . 405 . 2850 1519 130 . . 1507 Kills 80 | . . . . . . . . . . . . . 30 . . . . . . . . 4 . 23 14 1 . . 8 Allies Corrupted . | . . . . . . . . . . . . . . . . . . . . . . . . . . . . . . Allies Melted . | . . . . . . . . . . . . . . . . . . . . . . . . . . . . . . Field Lobotomies 1 | . . . . . . . . . . . . . . . . . . . . . . 1 . . . . . . . Intel | -11 -10 -10 -10 -9 -8 -7 -7 -7 -7 -6 -6 -6 -6 -6 -6 -6 -5 -5 -5 -5 -5 -4 -4 -4 -4 -4 -4 -3 -3 ------- Run | Scr Mat Min Exi Min Mat Fac Low Low Zio Pro Fac Was Fac Low Low Dat Pro Fac Upp Upp Zhi Pro Fac Ext Cet Arc Hub Res Qua Robot Analysis Total 116 | . 1 . . . . . . . . . . . . . . 115 . . . . . . . . . . . . . Derelict Logs Recovered 9 | . . . . . . . 1 1 1 . . . . . 1 . 1 . 2 2 . . . . . . . . . Drone Launches 2 | . . . . . . . . . . . . . 2 . . . . . . . . . . . . . . . . Drone Recoveries 2 | . . . . . . . . . . . . . 2 . . . . . . . . . . . . . . . . Exploration | -11 -10 -10 -10 -9 -8 -7 -7 -7 -7 -6 -6 -6 -6 -6 -6 -6 -5 -5 -5 -5 -5 -4 -4 -4 -4 -4 -4 -3 -3 ------------- Run | Scr Mat Min Exi Min Mat Fac Low Low Zio Pro Fac Was Fac Low Low Dat Pro Fac Upp Upp Zhi Pro Fac Ext Cet Arc Hub Res Qua Turns Passed 21936 | 81 1001 150 636 276 1968 1454 490 396 1309 507 1227 764 1144 638 543 330 1233 802 945 697 401 1140 438 1298 466 109 565 615 313 Spaces Moved 11358 | 45 528 79 343 137 838 646 293 230 818 315 642 424 644 368 319 128 692 416 484 365 194 505 157 468 218 45 217 352 448 Core 455 | 2 . . . . . . . . . . . . . . . . . . . . . . . . . . . 138 315 Treads 8410 | 43 528 79 343 137 838 646 293 230 818 315 642 424 644 368 319 126 61 . . . . 237 157 468 218 45 217 214 . Legs 2360 | . . . . . . . . . . . . . . . . 2 631 416 484 365 194 268 . . . . . . . Wheels . | . . . . . . . . . . . . . . . . . . . . . . . . . . . . . . Hover 113 | . . . . . . . . . . . . . . . . . . . . . . . . . . . . . 113 Flight 20 | . . . . . . . . . . . . . . . . . . . . . . . . . . . . . 20 Fastest Speed 50 | 50 160 160 160 200 183 158 156 156 158 158 158 160 160 160 160 160 150 150 150 180 180 180 180 160 163 183 183 50 50 Average Speed 163 | 155 160 160 183 200 184 180 165 157 158 158 166 160 160 160 160 176 154 150 168 180 180 188 183 178 172 183 183 115 63 Slowest Speed 240 | 160 160 160 200 200 240 200 178 158 158 158 178 162 160 160 160 240 240 180 180 210 180 210 200 180 183 183 185 163 100 Overloaded Moves . | . . . . . . . . . . . . . . . . . . . . . . . . . . . . . . Propulsion Burnouts . | . . . . . . . . . . . . . . . . . . . . . . . . . . . . . . Robots Hopped 1 | . . . . . . . . . . . . . . . . . . . . . . . . . . . . . 1 Cave-ins Triggered 1 | . . . . . . . . . . . . . . . . . . 1 . . . . . . . . . . . Teleports 1 | . . . . . . . . . . . . . . . . . . . . . . . . . . . . 1 . Exploration Rate (%) 49 | 4 73 15 70 34 65 19 56 39 81 50 22 96 25 58 53 79 80 21 75 55 60 63 8 73 56 61 23 19 44 Regions Visited 29 Branch Regions 20 Pre-discovered Areas 36 | . . . 1 . . . . . 2 . . . . . . 29 1 . . . 3 . . . . . . . . Known Exits Taken 20 | . . . . . . 1 1 1 1 1 . . 1 1 1 1 1 1 1 1 1 1 1 1 1 1 1 . . Unknown Exits Taken 7 | 1 1 1 1 1 1 . . . . . . . . . . . . . . . . . . . . . . 1 . Scrap Searched 21 | . . 1 . 2 . . 2 . 4 1 . . . 1 1 . 4 . 2 1 . 2 . . . . . . . Spaces Dug 88 | . . . . . . 2 . . . . 17 . . 2 . . 2 18 19 . . 22 2 . . . 2 2 . Terrain Destroyed 567 | . . . . . . 11 . 4 . . 19 . . 2 . . 7 18 24 2 . 27 2 82 27 10 324 8 . Melee 76 | . . . . . . 2 . . . . 17 . . 1 . . 2 18 8 . . 22 2 . . . 2 2 . Projectile 181 | . . . . . . 9 . 4 . . 2 . . 1 . . 5 . 16 2 . 5 . 82 27 10 14 4 . AOE 310 | . . . . . . . . . . . . . . . . . . . . . . . . . . . 308 2 . Terrain Rammed . | . . . . . . . . . . . . . . . . . . . . . . . . . . . . . . Walls Destroyed . | . . . . . . . . . . . . . . . . . . . . . . . . . . . . . . Machines Disabled . | . . . . . . . . . . . . . . . . . . . . . . . . . . . . . . Actions | -11 -10 -10 -10 -9 -8 -7 -7 -7 -7 -6 -6 -6 -6 -6 -6 -6 -5 -5 -5 -5 -5 -4 -4 -4 -4 -4 -4 -3 -3 --------- Run | Scr Mat Min Exi Min Mat Fac Low Low Zio Pro Fac Was Fac Low Low Dat Pro Fac Upp Upp Zhi Pro Fac Ext Cet Arc Hub Res Qua Total 13475 | 53 613 87 349 139 1063 866 296 245 837 324 757 484 731 390 334 183 796 533 563 381 217 595 295 774 266 52 318 463 471 Wait 781 | . 24 . . 1 62 148 3 5 3 10 53 5 52 . . 9 42 66 39 . . 17 124 24 11 . 42 29 12 Move 11328 | 44 527 78 342 136 837 645 292 229 817 314 642 423 643 367 318 127 691 415 483 364 193 504 156 467 217 44 216 351 446 Hop 1 | . . . . . . . . . . . . . . . . . . . . . . . . . . . . . 1 Pick Up 106 | 1 8 . 1 1 18 8 . 1 4 . 10 13 1 . 3 2 1 2 1 4 4 3 1 6 3 . 3 5 2 Fast Attach 84 | 7 2 . 1 1 8 5 . . 4 . 2 4 . . . 5 3 10 1 . 2 4 1 8 4 . 2 5 5 Attach 65 | . 1 . . . 11 5 . 1 . . . 2 . . 1 9 6 1 2 1 1 1 2 5 . . 3 12 1 Detach 31 | 1 . . 1 . 6 1 . . 3 . . 3 . . . 1 6 1 . . 1 . 1 3 . . 2 1 . Swap 109 | . 3 . 2 . 9 12 1 . . . 6 2 17 6 2 5 1 1 10 1 1 7 1 7 4 . 6 5 . Drop 94 | . 4 . 1 . 11 6 . . 6 . 13 17 3 . 1 2 . 1 . 2 . . 2 9 9 . 4 1 2 Fire 553 | . 44 9 1 . 100 33 . 9 . . 12 15 12 16 9 18 26 . 18 9 14 25 4 67 18 8 38 47 1 Melee 128 | . . . . . . 2 . . . . 19 . 3 1 . 5 20 36 9 . . 22 3 . . . 2 6 . Ram 2 | . . . . . . . . . . . . . . . . . . . . . . . . . . . . 1 1 Kick . | . . . . . . . . . . . . . . . . . . . . . . . . . . . . . . Crush 2 | . . . . . 1 1 . . . . . . . . . . . . . . . . . . . . . . . Escape Stasis 4 | . . . . . . . . . . . . . . . . . . . . . . . . 4 . . . . . Rewire 187 | . . . . . . . . . . . . . . . . . . . . . 1 12 . 174 . . . . . Trap . | . . . . . . . . . . . . . . . . . . . . . . . . . . . . . . Miscellaneous . | . . . . . . . . . . . . . . . . . . . . . . . . . . . . . . Route ------- -11/Scrapyard -10/Materials (discovered 3 exits: [*Mat x2] / [*Min]) -10/Mines -10/Exiles -9/Mines -8/Materials -7/Factory (discovered 5 exits: *Fac / Sto x2 / *Low x2) -7/Lower Caves -7/Lower Caves -7/Zion (discovered 2 exits: Dee / *Pro) -6/Proximity Caves -6/Factory -6/Waste -6/Factory -6/Lower Caves -6/Lower Caves -6/Data Miner -5/Proximity Caves -5/Factory (discovered 2 exits: *Upp x2) -5/Upper Caves -5/Upper Caves -5/Zhirov -4/Proximity Caves -4/Factory (discovered 2 exits: *Ext x2) -4/Extension (discovered 2 exits: *Res / *Cet) -4/Cetus (discovered 2 exits: *Res / *Arc) -4/Archives -4/Hub_04(d) -3/Research (discovered 2 exits: Arm / *Qua) -3/Quarantine History --------- Turn | Location | Event 10 | -11/Scrapyard | Discovered new exit (range 15) 82 | -11/Scrapyard | Entered Materials 315 | -10/Materials | Build established: Mutant 376 | -10/Materials | Discovered new exit (range 14) 587 | -10/Materials | Discovered new exit (range 15) 959 | -10/Materials | Discovered new exit (range 9) 1083 | -10/Materials | Entered Mines 1227 | -10/Mines | Deemed a non-threat by the Exiles lab entrance 1227 | -10/Mines | Discovered new exit (range 5) 1233 | -10/Mines | Entered Exiles 1273 | -10/Exiles | Met 8R-AWN 1299 | -10/Exiles | Met EX-HEX 1373 | -10/Exiles | Met EX-DEC 1401 | -10/Exiles | Learned location of Zion (-7) 1565 | -10/Exiles | Met EX-BIN 1593 | -10/Exiles | Aligned with FarCom system 1595 | -10/Exiles | Given EX-Vault access code 1645 | -10/Exiles | Opened EX-Vault 1659 | -10/Exiles | Found Field Lobotomy Kit 1702 | -10/Exiles | Warned to stay clear of 0b10 Research branches 1832 | -10/Exiles | Attacked by the Exiles 1853 | -10/Exiles | Discovered new exit (range 10) 1869 | -10/Exiles | Left Exiles lab with Field Lobotomy Kit 1869 | -10/Exiles | Entered Mines 1906 | -9/Mines | Assembled infested the area 1911 | -9/Mines | Assisted by a Guerilla fighting off Assembled 2127 | -9/Mines | Discovered new exit (range 10) 2145 | -9/Mines | Entered Materials 2145 | -8/Materials | Evolved 4 slots: Propulsion x1, Utility x2, Weapon x1 3147 | -8/Materials | Build established: Scavenger-Tank 3868 | -8/Materials | Build established: Hauler-Tank 3931 | -8/Materials | Discovered new exit (range 5) 4113 | -8/Materials | Entered Factory 4113 | -7/Factory | Evolved 2 slots: Propulsion x1, Utility x1 4578 | -7/Factory | Identified exit to Storage 4578 | -7/Factory | Identified exit to Lower Caves 5128 | -7/Factory | Build established: Hauler-Skirmisher 5279 | -7/Factory | Discovered new exit (range 8) 5567 | -7/Factory | Entered Lower Caves 5845 | -7/Lower Caves | Encountered a Warlord checkpoint 6044 | -7/Lower Caves | Discovered new exit (range 8) 6055 | -7/Lower Caves | Identified exit to Lower Caves 6057 | -7/Lower Caves | Entered another Lower Caves area 6111 | -7/Lower Caves | Build established: Scavenger-Skirmisher 6120 | -7/Lower Caves | Learned 4 Factory zone layouts 6422 | -7/Lower Caves | Discovered new exit (range 13) 6452 | -7/Lower Caves | Identified exit to Zion 6453 | -7/Lower Caves | Entered Zion 6536 | -7/Zion | Discovered new exit (range 16) 6556 | -7/Zion | Build established: Hauler-Skirmisher 6646 | -7/Zion | System corruption cleaned by Quarantine Array 6716 | -7/Zion | Learned location of Testing (-2) 6730 | -7/Zion | Received a visual enhancement algorithm 6784 | -7/Zion | Learned location of Recycling (-7) 6904 | -7/Zion | Given the Hacking Drone Bay 6907 | -7/Zion | Found Prototype Device 7134 | -7/Zion | Identified exit to Deep Caves 7293 | -7/Zion | Found Prototype Processor 7293 | -7/Zion | Identified Exp. Terrain Scan Processor 7296 | -7/Zion | Found Prototype Processor 7296 | -7/Zion | Identified Exp. Core Analyzer 7300 | -7/Zion | Found Prototype Processor 7300 | -7/Zion | Identified Exp. Armor Integrity Analyzer 7306 | -7/Zion | Found Exp. Armor Integrity Analyzer 7561 | -7/Zion | Gained Derelict followers 7711 | -7/Zion | Visited the Megawrench Repair Shop 7711 | -7/Zion | Megawrench repaired 12 parts 7757 | -7/Zion | Identified exit to Proximity Caves 7762 | -7/Zion | Entered Proximity Caves 7762 | -6/Proximity Caves | Accompanied by 4 allies 8218 | -6/Proximity Caves | Spotted B-75 Beast 8243 | -6/Proximity Caves | Discovered new exit (range 15) 8265 | -6/Proximity Caves | Identified exit to Factory 8269 | -6/Proximity Caves | Entered Factory 8269 | -6/Factory | Evolved 2 slots: Utility x2 9087 | -6/Factory | Build established: Hauler-Mutant 9496 | -6/Factory | Sucked down chute 9496 | -6/Factory | Entered Waste 9512 | -6/Waste | Spotted C-40 Crusher 9512 | -6/Waste | Spotted C-40 Crusher 9524 | -6/Waste | Destroyed C-40 Crusher 9534 | -6/Waste | Destroyed C-40 Crusher 9540 | -6/Waste | Destroyed C-40 Crusher 9562 | -6/Waste | Spotted C-40 Crusher 9562 | -6/Waste | Spotted C-40 Crusher 9572 | -6/Waste | Destroyed C-40 Crusher 9575 | -6/Waste | Destroyed C-40 Crusher 9578 | -6/Waste | Spotted C-40 Crusher 9586 | -6/Waste | Destroyed C-40 Crusher 9602 | -6/Waste | Found Damper Plating 9620 | -6/Waste | Found Damper Plating 9662 | -6/Waste | Found Damper Plating 9832 | -6/Waste | Found Imp. Powered Armor 9884 | -6/Waste | Discovered new exit (range 16) 9888 | -6/Waste | Found Adv. Powered Armor 9907 | -6/Waste | Found Broken Enh. Force Lance 9910 | -6/Waste | Identified exit to Factory 9932 | -6/Waste | Build established: Hauler-Skirmisher 10027 | -6/Waste | Warlord forces began an assault 10260 | -6/Waste | Entered Factory 10260 | -6/Factory | Accompanied by 18 allies 10293 | -6/Factory | Garrison activated, responded to threat 10387 | -6/Factory | Identified Hacking Drone Bay 10594 | -6/Factory | Build established: Hauler-Mutant 10610 | -6/Factory | First assault squad dispatched 11281 | -6/Factory | Garrison activated, responded to threat 11369 | -6/Factory | Discovered new exit (range 13) 11403 | -6/Factory | Identified exit to Lower Caves 11404 | -6/Factory | Entered Lower Caves 11501 | -6/Lower Caves | Spotted B-75 Beast 11754 | -6/Lower Caves | Encountered a Warlord checkpoint 12028 | -6/Lower Caves | Discovered new exit (range 9) 12041 | -6/Lower Caves | Identified exit to Lower Caves 12042 | -6/Lower Caves | Entered another Lower Caves area 12042 | -6/Lower Caves | Spotted Q0-ZJK(f) 12042 | -6/Lower Caves | Spotted YI-O34(f) 12043 | -6/Lower Caves | Encountered a Master Thief 12043 | -6/Lower Caves | Encountered a Master Thief 12048 | -6/Lower Caves | Hacking Drone Bay stolen by Master Thief 12058 | -6/Lower Caves | Adv. Powered Armor stolen by Master Thief 12061 | -6/Lower Caves | Destroyed YI-O34(f) 12348 | -6/Lower Caves | Build established: Hauler-Skirmisher 12519 | -6/Lower Caves | Discovered new exit (range 12) 12545 | -6/Lower Caves | Identified exit to Data Miner 12566 | -6/Lower Caves | Learned location of 1 exit from Factory 12585 | -6/Lower Caves | Entered Data Miner 12585 | -6/Data Miner | Discovered new exit (range 6) 12616 | -6/Data Miner | Met Data Miner 12643 | -6/Data Miner | Learned location of Section 7 (-3) 12643 | -6/Data Miner | Acquired the access code to Warlord's prototype stash 12673 | -6/Data Miner | Received God Mode back door access code from Data Miner 12703 | -6/Data Miner | Interfaced with the Data Conduit 12797 | -6/Data Miner | Core integrity fell below 50% 12820 | -6/Data Miner | Lost 10 parts (2p3n1u4w) 12860 | -6/Data Miner | Build established: Hauler-Mutant 12913 | -6/Data Miner | Identified exit to Proximity Caves 12915 | -6/Data Miner | Entered Proximity Caves 13112 | -5/Proximity Caves | Lost 6 parts (1p1n1u3w) 14139 | -5/Proximity Caves | Discovered new exit (range 7) 14146 | -5/Proximity Caves | Identified exit to Factory 14148 | -5/Proximity Caves | Entered Factory 14148 | -5/Factory | Evolved 2 slots: Power x1, Weapon x1 14149 | -5/Factory | Identified exit to Upper Caves 14151 | -5/Factory | Loaded intel: 239 machine locations 14275 | -5/Factory | Crushed by falling debris 14656 | -5/Factory | Spotted B-75 Beast 14891 | -5/Factory | Build established: Hauler-Skirmisher 14928 | -5/Factory | Intercept squad dispatched 14950 | -5/Factory | Entered Upper Caves 15431 | -5/Upper Caves | Learned Factory interactive machine intel 15580 | -5/Upper Caves | Attracted the attention of an 0b10 checkpoint 15673 | -5/Upper Caves | Spotted B-75 Beast 15877 | -5/Upper Caves | Discovered new exit (range 11) 15893 | -5/Upper Caves | Identified exit to Upper Caves 15895 | -5/Upper Caves | Entered another Upper Caves area 15984 | -5/Upper Caves | Build established: Hauler-Mutant 16105 | -5/Upper Caves | Spotted R5-IDX(f) 16105 | -5/Upper Caves | Spotted BA-A99(f) 16107 | -5/Upper Caves | Encountered a Master Thief 16107 | -5/Upper Caves | Encountered a Master Thief 16109 | -5/Upper Caves | Spotted VC-8GN(f) 16109 | -5/Upper Caves | Spotted P5-Z5U(f) 16109 | -5/Upper Caves | Adv. Force Field stolen by Master Thief 16110 | -5/Upper Caves | Encountered a Master Thief 16110 | -5/Upper Caves | Encountered a Master Thief 16110 | -5/Upper Caves | Spotted WT-M9Z(f) 16111 | -5/Upper Caves | Encountered a Master Thief 16114 | -5/Upper Caves | Antimatter Reactor stolen by Master Thief 16120 | -5/Upper Caves | Master Tearclaws stolen by Master Thief 16120 | -5/Upper Caves | Enh. Flexi-carbon Leg stolen by Master Thief 16137 | -5/Upper Caves | Destroyed R5-IDX(f) 16211 | -5/Upper Caves | Learned 4 Factory zone layouts 16294 | -5/Upper Caves | Learned Factory trap positions 16407 | -5/Upper Caves | Build established: Hauler-Skirmisher 16586 | -5/Upper Caves | Discovered new exit (range 3) 16590 | -5/Upper Caves | Identified exit to Zhirov 16592 | -5/Upper Caves | Entered Zhirov 16592 | -5/Zhirov | Discovered new exit (range 3) 16625 | -5/Zhirov | Met Zhirov 16675 | -5/Zhirov | Zhirov requested help retrieving the SGEMP Prototype 16714 | -5/Zhirov | Found Alien Artifact 16714 | -5/Zhirov | Identified Integrated Reactor 16714 | -5/Zhirov | Installed Integrated Reactor, increased core energy generation (+10) 16736 | -5/Zhirov | Found Alien Artifact 16987 | -5/Zhirov | Identified exit to Proximity Caves 16993 | -5/Zhirov | Entered Proximity Caves 17087 | -4/Proximity Caves | Build established: Hauler-Mutant 17095 | -4/Proximity Caves | Spotted B-86 Titan 17105 | -4/Proximity Caves | Assimilated B-86 Titan with FLK Orb 17505 | -4/Proximity Caves | Attracted the attention of an 0b10 outpost 17611 | -4/Proximity Caves | Lost 4 parts (1p3n) 17974 | -4/Proximity Caves | Build established: Hauler-Skirmisher 18113 | -4/Proximity Caves | Discovered new exit (range 11) 18131 | -4/Proximity Caves | Identified exit to Factory 18133 | -4/Proximity Caves | Entered Factory 18133 | -4/Factory | Evolved 2 slots: Propulsion x1, Utility x1 18134 | -4/Factory | Identified exit to Extension 18135 | -4/Factory | Loaded intel: 98 trap records 18136 | -4/Factory | Loaded intel: 252 machine locations 18137 | -4/Factory | Loaded intel: 48 interactive machine locations 18338 | -4/Factory | Fabricated I-36 Angel (x1) 18524 | -4/Factory | Garrison activated, responded to threat 18546 | -4/Factory | Discovered exit to Extension (range 13) 18571 | -4/Factory | Entered Extension 18572 | -4/Extension | Loaded intel: 28 machine locations 19008 | -4/Extension | Rescued A7 19062 | -4/Extension | Rescued a captive Derelict 19064 | -4/Extension | Rescued a captive Derelict 19131 | -4/Extension | Spotted B-86 Titan 19138 | -4/Extension | Spotted B-86 Titan 19163 | -4/Extension | Allies destroyed B-86 Titan 19199 | -4/Extension | Destroyed B-86 Titan 19220 | -4/Extension | Lost 4 parts (1n2u1w) 19321 | -4/Extension | First assault squad dispatched 19399 | -4/Extension | Extracted ID and sensor layout for unrecognized location from A7's data core 19530 | -4/Extension | Build established: Scavenger-Gunner 19546 | -4/Extension | Disrupted transfer network 19826 | -4/Extension | Discovered new exit (range 10) 19830 | -4/Extension | Discovered new exit (range 6) 19841 | -4/Extension | Identified exit to Research 19866 | -4/Extension | Identified exit to Cetus 19869 | -4/Extension | Entered Cetus 19869 | -4/Cetus | Accompanied by 7 allies 19870 | -4/Cetus | Loaded intel: 24 machine locations 19889 | -4/Cetus | Spotted Cetus Guard 19889 | -4/Cetus | Spotted Cetus Guard 19891 | -4/Cetus | Spotted Cetus Guard 19893 | -4/Cetus | Spotted Cetus Guard 19899 | -4/Cetus | Allies destroyed Cetus Guard 19903 | -4/Cetus | Allies destroyed Cetus Guard 19904 | -4/Cetus | Allies destroyed Cetus Guard 19906 | -4/Cetus | Destroyed Cetus Guard 20028 | -4/Cetus | Discovered new exit (range 16) 20071 | -4/Cetus | Spotted Cetus Guard 20071 | -4/Cetus | Spotted Cetus Guard 20077 | -4/Cetus | Destroyed Cetus Guard 20077 | -4/Cetus | Spotted Cetus Guard 20081 | -4/Cetus | Spotted Cetus Guard 20082 | -4/Cetus | Allies destroyed Cetus Guard 20085 | -4/Cetus | Allies destroyed Cetus Guard 20103 | -4/Cetus | Discovered exit to Research (range 16) 20115 | -4/Cetus | Destroyed Cetus Guard 20120 | -4/Cetus | Met Revision 17 20331 | -4/Cetus | Identified exit to Archives 20335 | -4/Cetus | Entered Archives 20335 | -4/Archives | Accompanied by 2 allies 20336 | -4/Archives | Loaded intel: 8 machine locations 20404 | -4/Archives | Discovered new exit (range 15) 20432 | -4/Archives | Build established: Scavenger-Tank 20440 | -4/Archives | Identified exit to Hub_04(d) 20444 | -4/Archives | Entered Hub_04(d) 20444 | -4/Hub_04(d) | Accompanied by 1 ally 20445 | -4/Hub_04(d) | Loaded intel: 88 machine locations 20551 | -4/Hub_04(d) | Discovered exit to Research (range 5) 20751 | -4/Hub_04(d) | Network Hub disabled 20768 | -4/Hub_04(d) | Network Hub disabled 20979 | -4/Hub_04(d) | First assault squad dispatched 21009 | -4/Hub_04(d) | Entered Research 21009 | -3/Research | Evolved 2 slots: Propulsion x1, Utility x1 21010 | -3/Research | Identified exit to Armory 21011 | -3/Research | Loaded intel: 96 machine locations 21057 | -3/Research | Garrison activated, responded to threat 21142 | -3/Research | Found Quantum Capacitor 21179 | -3/Research | Fabricated Exp. Sensor Array (x1) 21259 | -3/Research | First assault squad dispatched 21388 | -3/Research | Lost 3 parts (1p1u1w) 21532 | -3/Research | Identified Transdimensional Reconstructor 21532 | -3/Research | Warped through subspace 21541 | -3/Research | Spotted B-86 Titan 21544 | -3/Research | Released all parts (14) 21582 | -3/Research | Core integrity fell below 50% 21597 | -3/Research | Lost 12 parts (4n4u4w) 21598 | -3/Research | Spotted B-86 Titan 21599 | -3/Research | Core integrity fell below 20% 21620 | -3/Research | Discovered new exit (range 9) 21624 | -3/Research | Entered Quarantine 21625 | -3/Quarantine | Loaded intel: 78 machine locations 21747 | -3/Quarantine | Build established: Mutant 21862 | -3/Quarantine | Found Alien Artifact 21880 | -3/Quarantine | Identified Core Reset Matrix 21880 | -3/Quarantine | Used Core Reset Matrix 21884 | -3/Quarantine | Detected hypermatrix surge 21884 | -3/Quarantine | Emitted hypermatrix ping 21884 | -3/Quarantine | Sensed 16 artifacts in vicinity 21889 | -3/Quarantine | Assembled emerged from beneath the floor 21905 | -3/Quarantine | Found Transdimensional Reconstructor 21937 | -3/Quarantine | Destroyed by G-67 Veteran with Electrolaser Last Messages --------------- 21862_ Acquired Alien Artifact. 21874_ ALERT: Rogue bot located, Programmers report to Quarantine Zone 4G. 21879_ Slammed into K-01 Serf. 21879_ K-01 Serf destroyed. 21880_ Acquired 28 matter. 21880_ Identified Core Reset Matrix. 21880_ Wiping memory... 21881_ CORE RESET 21884_ Detected hypermatrix surge. 21884_ Emitted hypermatrix ping. 21884_ Sensed 16 artifacts in vicinity. 21889_ Assembled emerge from beneath the floor. 21889_ Slug penetrates as-86903. 21889_ as-86903 destroyed. 21890_ ALERT: Hostile activity reported, dispatching reinforcements to area. 21905_ Acquired Transdimensional Reconstructor. 21925_ ALERT: Hostile activity reported, dispatching reinforcements to area. 21933_ Biometal Medium Treads destroyed. Map ----- +----------------------------------------------------+ | ?????????# # !!= ! # #????????? | | ?????????# # !== # #????????? | | ?????????# # != "" # ????????? | | ?????????+ # """# ?????????? | | ?????????# / """ S"#?????????????? | | ?????????# # """ """#?????????????? | | ?????????# # """ """#?????????????? | | ?????????# # #?????????????? | | ?????????# ######+########## #?? | | ?????????# ?? | | ?????????+ ?? | | ?????????# ?? | | ?????????# ?? | | ?????????#### ######+########### ##??? | | ????????????# #?# #????????????? | | ????????????# #?# #????????????? | | ????????????# #?#" T#????????????? | | ????????????# #?#"" ""#????????????? | | ????????????# #?#!"" ""!#????????????? | | ????????????# #?#!!"""!!#????????????? | | ????????????# #?#########????????????? | | ????????????# #??????????????????????? | | ????????????# #??????????????????????? | | ????????????# #??????????????????????? | | ???????????##g########???????????????h | | ???????????#g@ o?????k?h | | ???????? ]g/ ???????o? | | ???? # ????????? | | ?# ?# #############?????????? | | ?# "" "" ??# #?????????????????????? | | ???""G"????# #?????????????????????? | | ?????#?????# #?????????????????????? | | ???????????# T?????????????????????? | | ???????????#"""#?????????????????????? | | ?????????????????????????????????????? | | ?????????????????????????????????????? | | ?????????????????????????????????????? | | ?????????????????????????????????????? | | ?????????????????????????????????????? | | ?????????????????????????????????????? | | ?????????????????????????????????????? | | ?????????????????????????????????????? | | ?????????????????????????????????????? | | ?????????????????????????????????????? | | ?????????????????????????????????????? | | ?????????????????????????????????????? | | ?????????????????????????????????????? | | | | | | | +----------------------------------------------------+ Best States ------------- Heat Dissipation 77 Energy Generation 49 Energy Capacity 560 Matter Stores 300 Matter Capacity 300 Sight Range 16 Robot Scan Range 30 Terrain Scan Density 10 Armor Coverage 1200 Resistance: KI 20 Resistance: TH 10 Resistance: EM 90 Core Shielding 20 Propulsion Shielding 90 Weapon Shielding 66 Evasion (%) 54 Target Analysis 8 Core Analysis 8 Armor Integrity Analysis 90 Recoil Reduction 6 Offensive Hacking 14 Defensive Hacking 14 Item Schematics ----------------- None Robot Schematics ------------------ None Fabricated ------------ I-36 Angel | x1 | -4/Factory Exp. Sensor Array | x1 | -3/Research Alien Tech Used ----------------- Integrated Reactor Transdimensional Reconstructor Core Reset Matrix Achievements -------------- None Challenges ------------ None Game ------ Seed BehemothSwarmSuite Manual? 0 Play Time 02:36:03 Cumulative 178.1 hours Start 2021.05.30 @ 23:04:17 End 2021.05.31 @ 16:20:14 Sessions 5 Manual Loads 0 Difficulty Rogue Special Mode None Game No. 224 Rogue 137 Adventurer 87 Explorer 0 Win Type - Total 4 Types 3/0/0/1/0/0/0/0/0 Lore% 65 Gallery% 73 Achievement% 60 Wizard Run 0 Options --------- ASCII 0 Keyboard 1 Movement Numpad Keybinds 0 Fullscreen 1 Font 18/Smallcaps Map View 76x50 Tactical HUD 1 Map Filters NONE Filters NONE Steam 1 RUN: fb1ff7e4-dba1-45ad-acb7-015a48ec7adf